fUSD/lending_fUSD_20250617
["ID","MTS","AMOUNT","RATE_DAILY","PERIOD"]
[366256327,1750164700455,-1415.52,0.00016931,2]
[366256328,1750164700465,-490.0,0.00016931,2]
[366256329,1750164700475,-490.0,0.00016931,2]
[366256330,1750164700484,-490.0,0.00016931,2]
[366256331,1750164700495,-490.0,0.00016931,2]
[366256332,1750164700505,-490.0,0.00016931,2]
[366256333,1750164700515,-1049.28,0.00016931,2]
[366256334,1750164700525,-490.0,0.00016931,2]
[366256335,1750164700535,-490.0,0.00016931,2]
[366256336,1750164700545,-151.0,0.00016931,2]
[366256337,1750164700554,-663.92,0.00016931,2]
[366256338,1750164700564,-708.23,0.00016931,2]
[366256339,1750164700573,-490.0,0.00016931,2]
[366256340,1750164700583,-1322.55,0.00016931,2]
[366256341,1750164700593,-490.0,0.00016931,2]
[366256342,1750164700603,-490.0,0.00016931,2]
[366256343,1750164700614,-490.0,0.00016931,2]
[366256344,1750164700623,-490.0,0.00016931,2]
[366256345,1750164700634,-490.0,0.00016931,2]
[366256346,1750164700644,-1219.76,0.00016931,2]
[366256347,1750164700655,-2206.61,0.00016931,2]
[366256348,1750164700665,-490.0,0.00016931,2]
[366256349,1750164700674,-490.0,0.00016931,2]
[366256350,1750164700684,-731.67,0.00016931,2]
[366256351,1750164700694,-490.0,0.00016931,2]
[366256352,1750164700703,-394.18726912,0.00016931,2]
[366256353,1750164700713,-538.95,0.00016931,2]
[366256354,1750164700723,-520.27,0.00016931,2]
[366256355,1750164700732,-490.0,0.00016931,2]
[366256356,1750164700742,-490.0,0.00016931,2]
[366256357,1750164700752,-490.0,0.00016931,2]
[366256358,1750164700762,-490.0,0.00016931,2]
[366256359,1750164700771,-151.0,0.00016931,2]
[366256360,1750164700781,-490.0,0.00016931,2]
[366256361,1750164700791,-490.0,0.00016931,2]
[366256362,1750164700801,-490.0,0.00016931,2]
[366256363,1750164700811,-490.0,0.00016931,2]
[366256364,1750164700820,-490.0,0.00016931,2]
[366256365,1750164700829,-709.65,0.00016931,2]
[366256366,1750164700839,-490.0,0.00016931,2]
[366256367,1750164700849,-490.0,0.00016931,2]
[366256368,1750164700859,-746.18,0.00016931,2]
[366256369,1750164700869,-490.0,0.00016931,2]
[366256370,1750164700879,-433.19132958,0.00016931,2]
[366256371,1750164700890,-490.0,0.00016931,2]
[366256372,1750164700901,-490.0,0.00016931,2]
[366256373,1750164700910,-490.0,0.00016931,2]
[366256374,1750164700920,-490.0,0.00016931,2]
[366256375,1750164700931,-490.0,0.00016931,2]
[366256376,1750164700941,-442.7023316,0.00016931,2]
[366256377,1750164700951,-490.0,0.00016931,2]
[366256378,1750164700960,-490.0,0.00016931,2]
[366256379,1750164700970,-908.62,0.00016931,2]
[366256380,1750164700980,-480.0,0.00016931,2]
[366256381,1750164700990,-490.0,0.00016931,2]
[366256382,1750164701000,-247.813536,0.00016931,2]
[366256383,1750164701010,-577.82,0.00016931,2]
[366256384,1750164701019,-490.0,0.00016931,2]
[366256385,1750164701030,-490.0,0.00016931,2]
[366256386,1750164701039,-490.0,0.00016931,2]
[366256387,1750164701049,-1326.45,0.00016931,2]
[366256388,1750164701059,-490.0,0.00016931,2]
[366256389,1750164701069,-247.813536,0.00016931,2]
[366256390,1750164701078,-490.0,0.00016931,2]
[366256391,1750164701088,-564.56,0.00016931,2]
[366256392,1750164701098,-151.0,0.00016931,2]
[366256393,1750164701107,-957.51,0.00016931,2]
[366256394,1750164701117,-490.0,0.00016931,2]
[366256395,1750164701127,-827.74,0.00016931,2]
[366256396,1750164701137,-653.24,0.00016931,2]
[366256397,1750164701147,-490.0,0.00016931,2]
[366256398,1750164701157,-262.45183,0.00016931,2]
[366256399,1750164701168,-494.11415465,0.00016931,2]
[366256400,1750164701180,-490.0,0.00016931,2]
[366256401,1750164701190,-151.0,0.00016931,2]
[366256402,1750164701200,-490.0,0.00016931,2]
[366256403,1750164701211,-490.0,0.00016931,2]
[366256404,1750164701221,-1030.84,0.00016931,2]
[366256405,1750164701230,-490.0,0.00016931,2]
[366256406,1750164701241,-490.0,0.00016931,2]
[366256407,1750164701251,-490.0,0.00016931,2]
[366256408,1750164701262,-490.0,0.00016931,2]
[366256409,1750164701272,-490.0,0.00016931,2]
[366256410,1750164701282,-151.0,0.00016931,2]
[366256411,1750164701292,-490.0,0.00016931,2]
[366256412,1750164701303,-490.0,0.00016931,2]
[366256413,1750164701313,-155.740015,0.00016931,2]
[366256414,1750164701322,-543.54,0.00016931,2]
[366256415,1750164701332,-490.0,0.00016931,2]
[366256416,1750164701342,-1310.15,0.00016931,2]
[366256417,1750164701352,-490.0,0.00016931,2]
[366256418,1750164701362,-496.68,0.00016931,2]
[366256419,1750164701372,-490.0,0.00016931,2]
[366256420,1750164701382,-155.740015,0.00016931,2]
[366256421,1750164701394,-1005.43,0.00016931,2]
[366256422,1750164701405,-490.0,0.00016931,2]
[366256423,1750164701415,-490.0,0.00016931,2]
[366256424,1750164701425,-490.0,0.00016931,2]
[366256425,1750164701435,-490.0,0.00016931,2]
[366256426,1750164701445,-490.0,0.00016931,2]
[366256427,1750164701455,-490.0,0.00016931,2]
[366256428,1750164701465,-490.0,0.00016931,2]
[366256429,1750164701475,-495.48,0.00016931,2]
[366256430,1750164701485,-975.37,0.00016931,2]
[366256431,1750164701495,-151.0,0.00016931,2]
[366256432,1750164701504,-618.79,0.00016931,2]
[366256433,1750164701514,-151.0,0.00016931,2]
[366256434,1750164701523,-490.0,0.00016931,2]
[366256435,1750164701533,-490.0,0.00016931,2]
[366256436,1750164701544,-490.0,0.00016931,2]
[366256437,1750164701554,-490.0,0.00016931,2]
[366256438,1750164701564,-882.14,0.00016931,2]
[366256439,1750164701574,-490.0,0.00016931,2]
[366256440,1750164701584,-490.0,0.00016931,2]
[366256441,1750164701595,-490.0,0.00016931,2]
[366256442,1750164701604,-490.0,0.00016931,2]
[366256443,1750164701615,-490.0,0.00016931,2]
[366256444,1750164701626,-151.0,0.00016931,2]
[366256445,1750164701636,-490.0,0.00016931,2]
[366256446,1750164701646,-151.0,0.00016931,2]
[366256447,1750164701656,-490.0,0.00016931,2]
[366256448,1750164701666,-490.0,0.00016931,2]
[366256449,1750164701677,-490.0,0.00016931,2]
[366256450,1750164701687,-490.0,0.00016931,2]
[366256451,1750164701697,-151.0,0.00016931,2]
[366256452,1750164701708,-151.0,0.00016931,2]
[366256453,1750164701718,-490.0,0.00016931,2]
[366256454,1750164701728,-534.08,0.00016931,2]
[366256455,1750164701738,-490.0,0.00016931,2]
[366256456,1750164701748,-659.94,0.00016931,2]
[366256457,1750164701758,-552.11363356,0.00016931,2]
[366256458,1750164701769,-490.0,0.00016931,2]
[366256459,1750164701780,-479.98971324,0.00016931,2]
[366256460,1750164701789,-490.0,0.00016931,2]
[366256461,1750164701800,-490.0,0.00016931,2]
[366256462,1750164701810,-490.0,0.00016931,2]
[366256463,1750164701820,-194.32471237,0.00016931,2]
[366256464,1750164701830,-1026.29,0.00016931,2]
[366256465,1750164701840,-490.0,0.00016931,2]
[366256466,1750164701851,-490.0,0.00016931,2]
[366256467,1750164701861,-490.0,0.00016931,2]
[366256468,1750164701871,-817.67,0.00016931,2]
[366256469,1750164701882,-490.0,0.00016931,2]
[366256470,1750164701893,-490.0,0.00016931,2]
[366256471,1750164701903,-151.0,0.00016931,2]
[366256472,1750164701913,-491.2364745,0.00016931,2]
[366256473,1750164701923,-490.0,0.00016931,2]
[366256474,1750164701933,-531.3,0.00016931,2]
[366256475,1750164701944,-214.597583,0.00016931,2]
[366256476,1750164701953,-490.0,0.00016931,2]
[366256477,1750164701963,-490.0,0.00016931,2]
[366256478,1750164701973,-214.597583,0.00016931,2]
[366256479,1750164701983,-490.0,0.00016931,2]
[366256480,1750164701993,-490.0,0.00016931,2]
[366256481,1750164702003,-490.0,0.00016931,2]
[366256482,1750164702012,-490.0,0.00016931,2]
[366256483,1750164702022,-490.0,0.00016931,2]
[366256484,1750164702032,-490.0,0.00016931,2]
[366256485,1750164702041,-1100.14,0.00016931,2]
[366256486,1750164702051,-490.0,0.00016931,2]
[366256487,1750164702060,-490.0,0.00016931,2]
[366256488,1750164702070,-490.0,0.00016931,2]
[366256489,1750164702080,-660.53,0.00016931,2]
[366256490,1750164702089,-962.4,0.00016931,2]
[366256491,1750164702099,-490.0,0.00016931,2]
[366256492,1750164702109,-490.0,0.00016931,2]
[366256493,1750164702118,-490.0,0.00016931,2]
[366256494,1750164702127,-490.0,0.00016931,2]
[366256495,1750164702139,-490.0,0.00016931,2]
[366256496,1750164702148,-490.0,0.00016931,2]
[366256497,1750164702158,-490.0,0.00016931,2]
[366256498,1750164702169,-490.0,0.00016931,2]
[366256499,1750164702181,-490.0,0.00016931,2]
[366256500,1750164702191,-490.0,0.00016931,2]
[366256501,1750164702200,-720.15,0.00016931,2]
[366256502,1750164702210,-490.0,0.00016931,2]
[366256503,1750164702219,-1377.37,0.00016931,2]
[366256504,1750164702229,-490.0,0.00016931,2]
[366256505,1750164702238,-490.0,0.00016931,2]
[366256506,1750164702248,-490.0,0.00016931,2]
[366256507,1750164702258,-490.0,0.00016931,2]
[366256508,1750164702267,-498.02,0.00016931,2]
[366256509,1750164702277,-490.0,0.00016931,2]
[366256510,1750164702286,-490.0,0.00016931,2]
[366256511,1750164702296,-490.0,0.00016931,2]
[366256512,1750164702306,-490.0,0.00016931,2]
[366256513,1750164702315,-490.0,0.00016931,2]
[366256514,1750164702325,-490.0,0.00016931,2]
[366256515,1750164702335,-490.0,0.00016931,2]
[366256516,1750164702345,-490.0,0.00016931,2]
[366256517,1750164702354,-490.0,0.00016931,2]
[366256518,1750164702364,-490.0,0.00016931,2]
[366256519,1750164702374,-490.0,0.00016931,2]
[366256520,1750164702385,-490.0,0.00016931,2]
[366256521,1750164702395,-490.0,0.00016931,2]
[366256522,1750164702406,-1323.87,0.00016931,2]
[366256523,1750164702416,-513.91427041,0.00016931,2]
[366256524,1750164702426,-250.0,0.00016931,2]
[366256525,1750164702437,-490.0,0.00016931,2]
[366256526,1750164702446,-490.0,0.00016931,2]
[366256527,1750164702456,-490.0,0.00016931,2]
[366256528,1750164702466,-490.0,0.00016931,2]
[366256529,1750164702475,-820.55,0.00016931,2]
[366256530,1750164702485,-490.0,0.00016931,2]
[366256531,1750164702495,-490.0,0.00016931,2]
[366256532,1750164702505,-155.801001,0.00016931,2]
[366256533,1750164702514,-1759.73,0.00016931,2]
[366256534,1750164702524,-490.0,0.00016931,2]
[366256535,1750164702534,-490.0,0.00016931,2]
[366256536,1750164702544,-490.0,0.00016931,2]
[366256537,1750164702553,-155.801001,0.00016931,2]
[366256538,1750164702563,-490.0,0.00016931,2]
[366256539,1750164702781,-490.0,0.00016931,2]
[366256540,1750164702791,-490.0,0.00016931,2]
[366256541,1750164702801,-763.5,0.00016931,2]
[366256542,1750164702811,-727.1,0.00016931,2]
[366256543,1750164702822,-490.0,0.00016931,2]
[366256544,1750164702833,-490.0,0.00016931,2]
[366256545,1750164702843,-490.0,0.00016931,2]
[366256546,1750164702853,-1756.61,0.00016931,2]
[366256547,1750164702863,-490.0,0.00016931,2]
[366256548,1750164702873,-887.07,0.00016931,2]
[366256549,1750164702883,-2106.23,0.00016931,2]
[366256550,1750164702893,-490.0,0.00016931,2]
[366256551,1750164702903,-490.0,0.00016931,2]
[366256552,1750164702913,-490.0,0.00016931,2]
[366256553,1750164702923,-490.0,0.00016931,2]
[366256554,1750164702934,-490.0,0.00016931,2]
[366256555,1750164702944,-490.0,0.00016931,2]
[366256556,1750164702954,-490.0,0.00016931,2]
[366256557,1750164702964,-3566.07,0.00016931,2]
[366256558,1750164703188,-490.0,0.00016931,2]
[366256559,1750164703207,-1019.07,0.00016931,2]
[366256560,1750164703219,-1459.85,0.00016931,2]
[366256561,1750164703229,-1002.31,0.00016931,2]
[366256562,1750164703239,-490.0,0.00016931,2]
[366256563,1750164703250,-2465.54,0.00016931,2]
[366256564,1750164703259,-491.42602028,0.00016931,2]
[366256565,1750164703269,-490.0,0.00016931,2]
[366256566,1750164703279,-1541.9,0.00016931,2]
[366256567,1750164703289,-490.0,0.00016931,2]
[366256568,1750164703299,-490.0,0.00016931,2]
[366256569,1750164703309,-490.0,0.00016931,2]
[366256570,1750164703318,-490.0,0.00016931,2]
[366256571,1750164703328,-490.0,0.00016931,2]
[366256572,1750164703339,-1285.58,0.00016931,2]
[366256573,1750164703349,-490.0,0.00016931,2]
[366256574,1750164703359,-490.0,0.00016931,2]
[366256575,1750164703369,-490.0,0.00016931,2]
[366256576,1750164703379,-2302.59,0.00016931,2]
[366256577,1750164703389,-490.0,0.00016931,2]
[366256578,1750164703400,-490.0,0.00016931,2]
[366256579,1750164703410,-552.55,0.00016931,2]
[366256580,1750164703420,-1209.47,0.00016931,2]
[366256581,1750164703430,-490.0,0.00016931,2]
[366256582,1750164703440,-1099.79,0.00016931,2]
[366256583,1750164703451,-490.0,0.00016931,2]
[366256584,1750164703461,-490.0,0.00016931,2]
[366256585,1750164703470,-490.0,0.00016931,2]
[366256586,1750164703481,-815.84,0.00016931,2]
[366256587,1750164703491,-490.0,0.00016931,2]
[366256588,1750164703501,-1690.85,0.00016931,2]
[366256589,1750164703511,-490.0,0.00016931,2]
[366256590,1750164703522,-490.0,0.00016931,2]
[366256591,1750164703532,-490.0,0.00016931,2]
[366256592,1750164703543,-490.0,0.00016931,2]
[366256593,1750164703553,-490.0,0.00016931,2]
[366256594,1750164703563,-490.0,0.00016931,2]
[366256595,1750164703574,-490.0,0.00016931,2]
[366256596,1750164703584,-296.26961898,0.00016931,2]
[366256597,1750164703594,-490.0,0.00016931,2]
[366256598,1750164703605,-490.0,0.00016931,2]
[366256599,1750164703614,-1609.53,0.00016931,2]
[366256600,1750164703625,-444.40022458,0.00016931,2]
[366256601,1750164703635,-2309.01,0.00016931,2]
[366256602,1750164703646,-490.0,0.00016931,2]
[366256603,1750164703656,-490.0,0.00016931,2]
[366256604,1750164703666,-491.21,0.00016931,2]
[366256605,1750164703677,-490.0,0.00016931,2]
[366256606,1750164703687,-1850.524618,0.00016931,2]
[366256607,1750164703698,-490.0,0.00016931,2]
[366256608,1750164703708,-490.0,0.00016931,2]
[366256609,1750164703718,-490.0,0.00016931,2]
[366256610,1750164703728,-3025.16,0.00016931,2]
[366256611,1750164703738,-490.0,0.00016931,2]
[366256612,1750164703748,-490.0,0.00016931,2]
[366256613,1750164703759,-490.0,0.00016931,2]
[366256614,1750164703770,-255.37,0.00016931,2]
[366256615,1750164703780,-1827.87,0.00016931,2]
[366256616,1750164703791,-978.71,0.00016931,2]
[366256617,1750164703801,-490.0,0.00016931,2]
[366256618,1750164703812,-2376.97,0.00016931,2]
[366256619,1750164703823,-490.0,0.00016931,2]
[366256620,1750164703833,-490.0,0.00016931,2]
[366256621,1750164703843,-665.58,0.00016931,2]
[366256622,1750164703853,-2059.97,0.00016931,2]
[366256623,1750164703863,-490.0,0.00016931,2]
[366256624,1750164703873,-490.0,0.00016931,2]
[366256625,1750164703883,-490.0,0.00016931,2]
[366256626,1750164703894,-490.0,0.00016931,2]
[366256627,1750164703903,-2092.53,0.00016931,2]
[366256628,1750164703915,-490.0,0.00016931,2]
[366256629,1750164703925,-490.0,0.00016931,2]
[366256630,1750164703937,-5417.93,0.00016931,2]
[366256631,1750164703947,-1763.65,0.00016931,2]
[366256632,1750164703957,-1518.66,0.00016931,2]
[366256633,1750164703968,-490.0,0.00016931,2]
[366256634,1750164703978,-490.0,0.00016931,2]
[366256635,1750164703988,-490.0,0.00016931,2]
[366256636,1750164703998,-947.96,0.00016931,2]
[366256637,1750164704009,-490.0,0.00016931,2]
[366256638,1750164704019,-1099.29,0.00016931,2]
[366256639,1750164704028,-490.0,0.00016931,2]
[366256640,1750164704038,-490.0,0.00016931,2]
[366256641,1750164704048,-490.0,0.00016931,2]
[366256642,1750164704057,-490.0,0.00016931,2]
[366256643,1750164704067,-1237.37,0.00016931,2]
[366256644,1750164704077,-490.0,0.00016931,2]
[366256645,1750164704088,-281.0534557,0.00016931,2]
[366256646,1750164704097,-490.0,0.00016931,2]
[366256647,1750164704107,-6182.7,0.00016931,2]
[366256648,1750164704118,-492.19,0.00016931,2]
[366256649,1750164704128,-490.0,0.00016931,2]
[366256650,1750164704138,-1065.56,0.00016931,2]
[366256651,1750164704148,-734.6,0.00016931,2]
[366256652,1750164704158,-833.42,0.00016931,2]
[366256653,1750164704168,-156.84,0.00016931,2]
[366256654,1750164704180,-490.0,0.00016931,2]
[366256655,1750164704190,-490.0,0.00016931,2]
[366256656,1750164704200,-7839.6,0.00016931,2]
[366256657,1750164704211,-490.0,0.00016931,2]
[366256658,1750164704221,-490.0,0.00016931,2]
[366256659,1750164704230,-1638.538412,0.00016931,2]
[366256660,1750164704241,-490.0,0.00016931,2]
[366256661,1750164704250,-490.0,0.00016931,2]
[366256662,1750164704261,-556.2,0.00016931,2]
[366256663,1750164704271,-16871.86,0.00016931,2]
[366256664,1750164704281,-490.0,0.00016931,2]
[366256665,1750164704291,-490.0,0.00016931,2]
[366256666,1750164704302,-490.0,0.00016931,2]
[366256667,1750164704312,-2361.36,0.00016931,2]
[366256668,1750164704322,-1710.39,0.00016931,2]
[366256669,1750164704331,-490.0,0.00016931,2]
[366256670,1750164704342,-490.0,0.00016931,2]
[366256671,1750164704352,-490.0,0.00016931,2]
[366256672,1750164704362,-160.759601,0.00016931,2]
[366256673,1750164704372,-5618.96,0.00016931,2]
[366256674,1750164704382,-490.0,0.00016931,2]
[366256675,1750164704394,-606.69,0.00016931,2]
[366256676,1750164704404,-490.0,0.00016931,2]
[366256677,1750164704414,-1285.51,0.00016931,2]
[366256678,1750164704424,-583.96,0.00016931,2]
[366256679,1750164704434,-164.55970415,0.00016931,2]
[366256680,1750164704444,-490.0,0.00016931,2]
[366256681,1750164704454,-490.0,0.00016931,2]
[366256682,1750164704464,-490.0,0.00016931,2]
[366256683,1750164704475,-490.0,0.00016931,2]
[366256684,1750164704486,-490.0,0.00016931,2]
[366256685,1750164704496,-894.67,0.00016931,2]
[366256686,1750164704507,-568.94,0.00016931,2]
[366256687,1750164704517,-490.0,0.00016931,2]
[366256688,1750164704526,-490.0,0.00016931,2]
[366256689,1750164704536,-490.0,0.00016931,2]
[366256690,1750164704546,-490.0,0.00016931,2]
[366256691,1750164704556,-490.0,0.00016931,2]
[366256692,1750164704566,-2491.31,0.00016931,2]
[366256693,1750164704576,-490.0,0.00016931,2]
[366256694,1750164704586,-490.0,0.00016931,2]
[366256695,1750164704596,-523.4,0.00016931,2]
[366256696,1750164704606,-357.62240057,0.00016931,2]
[366256697,1750164704616,-490.0,0.00016931,2]
[366256698,1750164704627,-490.0,0.00016931,2]
[366256699,1750164704637,-490.0,0.00016931,2]
[366256700,1750164704646,-490.0,0.00016931,2]
[366256701,1750164704656,-541.7,0.00016931,2]
[366256702,1750164704667,-1277.93,0.00016931,2]
[366256703,1750164704677,-490.0,0.00016931,2]
[366256704,1750164704687,-709.0,0.00016931,2]
[366256705,1750164704697,-1650.05,0.00016931,2]
[366256706,1750164704707,-490.0,0.00016931,2]
[366256707,1750164704717,-490.0,0.00016931,2]
[366256708,1750164704727,-490.0,0.00016931,2]
[366256709,1750164704737,-761.47,0.00016931,2]
[366256710,1750164704747,-490.0,0.00016931,2]
[366256711,1750164704756,-490.0,0.00016931,2]
[366256712,1750164704766,-490.0,0.00016931,2]
[366256713,1750164704775,-490.0,0.00016931,2]
[366256714,1750164704785,-490.0,0.00016931,2]
[366256715,1750164704795,-490.0,0.00016931,2]
[366256716,1750164704804,-490.0,0.00016931,2]
[366256717,1750164704814,-1193.08,0.00016931,2]
[366256718,1750164704824,-664.73,0.00016931,2]
[366256719,1750164704834,-490.0,0.00016931,2]
[366256720,1750164704844,-490.0,0.00016931,2]
[366256721,1750164704854,-2646.76,0.00016931,2]
[366256722,1750164704863,-2826.37,0.00016931,2]
[366256723,1750164704873,-490.0,0.00016931,2]
[366256724,1750164704883,-490.0,0.00016931,2]
[366256725,1750164704893,-490.0,0.00016931,2]
[366256726,1750164704902,-490.0,0.00016931,2]
[366256727,1750164704912,-490.0,0.00016931,2]
[366256728,1750164704921,-490.0,0.00016931,2]
[366256729,1750164704931,-490.37366609,0.00016931,2]
[366256730,1750164704941,-4780.04,0.00016931,2]
[366256731,1750164704951,-490.0,0.00016931,2]
[366256732,1750164704960,-490.0,0.00016931,2]
[366256733,1750164704970,-653.71,0.00016931,2]
[366256734,1750164704980,-490.0,0.00016931,2]
[366256735,1750164704990,-490.0,0.00016931,2]
[366256736,1750164705000,-490.0,0.00016931,2]
[366256737,1750164705009,-1164.36,0.00016931,2]
[366256738,1750164705019,-1477.76,0.00016931,2]
[366256739,1750164705029,-501.58,0.00016931,2]
[366256740,1750164705039,-490.0,0.00016931,2]
[366256741,1750164705048,-490.0,0.00016931,2]
[366256742,1750164705058,-490.0,0.00016931,2]
[366256743,1750164705067,-490.0,0.00016931,2]
[366256744,1750164705077,-490.0,0.00016931,2]
[366256745,1750164705086,-572.98906729,0.00016931,2]
[366256746,1750164705095,-623.53,0.00016931,2]
[366256747,1750164705105,-2200.08,0.00016931,2]
[366256748,1750164705114,-490.0,0.00016931,2]
[366256749,1750164705123,-490.0,0.00016931,2]
[366256750,1750164705133,-1524.61,0.00016931,2]
[366256751,1750164705144,-490.0,0.00016931,2]
[366256752,1750164705153,-490.0,0.00016931,2]
[366256753,1750164705163,-490.0,0.00016931,2]
[366256754,1750164705175,-2456.65,0.00016931,2]
[366256755,1750164705184,-1238.18,0.00016931,2]
[366256756,1750164705194,-490.0,0.00016931,2]
[366256757,1750164705204,-490.0,0.00016931,2]
[366256758,1750164705214,-927.08,0.00016931,2]
[366256759,1750164705223,-1289.32,0.00016931,2]
[366256760,1750164705234,-8543.47,0.00016931,2]
[366256761,1750164705244,-490.0,0.00016931,2]
[366256762,1750164705254,-490.0,0.00016931,2]
[366256763,1750164705263,-700.04,0.00016931,2]
[366256764,1750164705273,-490.0,0.00016931,2]
[366256765,1750164705282,-490.0,0.00016931,2]
[366256766,1750164705292,-490.0,0.00016931,2]
[366256767,1750164705301,-490.0,0.00016931,2]
[366256768,1750164705311,-1722.14,0.00016931,2]
[366256769,1750164705320,-492.63,0.00016931,2]
[366256770,1750164705330,-3973.97,0.00016931,2]
[366256771,1750164705340,-490.0,0.00016931,2]
[366256772,1750164705350,-490.0,0.00016931,2]
[366256773,1750164705360,-623.14,0.00016931,2]
[366256774,1750164705369,-490.0,0.00016931,2]
[366256775,1750164705379,-490.0,0.00016931,2]
[366256776,1750164705389,-1069.77,0.00016931,2]
[366256777,1750164705400,-490.0,0.00016931,2]
[366256778,1750164705410,-490.0,0.00016931,2]
[366256779,1750164705420,-490.0,0.00016931,2]
[366256780,1750164705430,-490.0,0.00016931,2]
[366256781,1750164705440,-490.0,0.00016931,2]
[366256782,1750164705450,-1146.38,0.00016931,2]
[366256783,1750164705461,-490.0,0.00016931,2]
[366256784,1750164705471,-899.89,0.00016931,2]
[366256785,1750164705481,-490.0,0.00016931,2]
[366256786,1750164705491,-1240.51,0.00016931,2]
[366256787,1750164705501,-490.0,0.00016931,2]
[366256788,1750164705511,-1288.48,0.00016931,2]
[366256789,1750164705521,-490.0,0.00016931,2]
[366256790,1750164705531,-490.0,0.00016931,2]
[366256791,1750164705541,-8958.91,0.00016931,2]
[366256792,1750164705550,-4666.51,0.00016931,2]
[366256793,1750164705560,-900.12,0.00016931,2]
[366256794,1750164705570,-490.0,0.00016931,2]
[366256795,1750164705579,-497.19141595,0.00016931,2]
[366256796,1750164705589,-490.0,0.00016931,2]
[366256797,1750164705599,-490.0,0.00016931,2]
[366256798,1750164705609,-490.0,0.00016931,2]
[366256799,1750164705619,-490.0,0.00016931,2]
[366256800,1750164705629,-1214.19,0.00016931,2]
[366256801,1750164705639,-841.35,0.00016931,2]
[366256802,1750164705648,-490.0,0.00016931,2]
[366256803,1750164705659,-490.0,0.00016931,2]
[366256804,1750164705670,-1696.76,0.00016931,2]
[366256805,1750164705680,-490.0,0.00016931,2]
[366256806,1750164705689,-6403.92,0.00016931,2]
[366256807,1750164705698,-490.0,0.00016931,2]
[366256808,1750164705709,-490.0,0.00016931,2]
[366256809,1750164705719,-5069.31,0.00016931,2]
[366256810,1750164705729,-490.0,0.00016931,2]
[366256811,1750164705851,-490.0,0.00016931,2]
[366256812,1750164705861,-1254.85,0.00016931,2]
[366256813,1750164705871,-1922.55,0.00016931,2]
[366256814,1750164705882,-490.0,0.00016931,2]
[366256815,1750164705891,-490.0,0.00016931,2]
[366256816,1750164705901,-490.0,0.00016931,2]
[366256817,1750164705910,-490.0,0.00016931,2]
[366256818,1750164705920,-572.96,0.00016931,2]
[366256819,1750164705930,-1131.12,0.00016931,2]
[366256820,1750164705940,-490.0,0.00016931,2]
[366256821,1750164705950,-184.37073311,0.00016931,2]
[366256822,1750164705960,-490.0,0.00016931,2]
[366256823,1750164705970,-622.02,0.00016931,2]
[366256824,1750164705979,-541.2,0.00016931,2]
[366256825,1750164705990,-490.0,0.00016931,2]
[366256826,1750164705999,-490.0,0.00016931,2]